[Event "NOR-ch Women 2019"]
[Site "Bekkestua"]
[Date "2019.03.17"]
[Round "4.8"]
[White "Landsverk, Ida"]
[Black "Blauhut, Anna"]
[Result "1/2-1/2"]
[ECO "C66"]
[WhiteElo "1369"]
[BlackElo "1081"]
[Annotator "NA"]
[PlyCount "111"]
[EventDate "2019.03.15"]
[EventType "swiss"]
[EventCountry "NOR"]
[SourceTitle "playchess.com"]
[Source "ChessBase"]
[SourceQuality "1"]
[TimeControl "5400+30"]

1. e4 {[%emt 0:00:32]} e5 {[%emt 0:00:37]} 2. Nf3 {[%emt 0:00:35]} Nc6 {[%emt 0:00:44]} 3. Bb5 {[%emt 0:00:37]} d6 {[%emt 0:01:35]} 4. O-O {[%emt 0:02:02]} Nf6 {[%emt 0:01:29]} 5. Re1 {[%emt 0:01:50]} Bd7 {[%emt 0:01:02]} 6. d4 {[%emt 0:01:52]} exd4 {[%emt 0:01:42]} 7. Nxd4 {[%emt 0:00:42]} Nxd4 {[%emt 0:00:47]} 8. Bxd7+ {[%emt 0:00:43]} Qxd7 {[%emt 0:01:22]} 9. Qxd4 {[%emt 0:00:38]} Be7 {[%emt 0:00:49]} 10. Nc3 {[%emt 0:04:35]} O-O {[%emt 0:00:59]} 11. Bg5 {[%emt 0:04:07]} Rad8 {[%emt 0:01:46]} 12. Qxa7 {[%emt 0:08:30]} c6 {[%emt 0:02:10]} 13. Rad1 {[%emt 0:02:29]} Qc7 {[%emt 0:01:58]} 14. Qe3 {[%emt 0:03:13]} h6 {[%emt 0:01:35]} 15. Bf4 {[%emt 0:10:48]} Ng4 {[%emt 0:02:32]} 16. Qg3 {[%emt 0:03:33]} h5 {[%emt 0:03:43]} 17. h3 {[%emt 0:06:48]} Ne5 {[%emt 0:00:55]} 18. Ne2 {[%emt 0:08:17]} h4 {[%emt 0:02:08]} 19. Qb3 {[%emt 0:05:49]} Bf6 {[%emt 0:02:11]} 20. Be3 {[%emt 0:04:53]} Nd7 {[%emt 0:01:44]} 21. Nd4 {[%emt 0:03:03]} Bxd4 {[%emt 0:01:58]} 22. Bxd4 {[%emt 0:00:44]} c5 {[%emt 0:01:54]} 23. Be3 {[%emt 0:01:37]} Nf6 {[%emt 0:06:44]} 24. Bg5 {[%emt 0:01:15]} Qc6 {[%emt 0:01:30]} 25. Bxh4 {[%emt 0:03:13]} Rfe8 {[%emt 0:01:15]} 26. Bxf6 {[%emt 0:04:30]} gxf6 {[%emt 0:00:57]} 27. Qg3+ {[%emt 0:00:55]} Kf8 {[%emt 0:01:11]} 28. Qf4 {[%emt 0:01:32]} Re6 {[%emt 0:01:13]} 29. Rd3 {[%emt 0:04:22]} d5 {[%emt 0:02:48]} 30. Red1 {[%emt 0:03:47]} d4 {[%emt 0:02:00]} 31. Qh6+ {[%emt 0:02:17]} Ke7 {[%emt 0:00:53]} 32. f3 {[%emt 0:01:28]} Kd7 {[%emt 0:02:54]} 33. c3 {[%emt 0:01:11]} Kc7 {[%emt 0:01:38]} 34. cxd4 {[%emt 0:01:29]} Red6 {[%emt 0:02:37]} 35. Qf4 {[%emt 0:01:05]} Kc8 {[%emt 0:01:06]} 36. d5 {[%emt 0:01:28]} Qb6 {[%emt 0:01:43]} 37. Rb3 {[%emt 0:00:56]} c4+ {[%emt 0:00:52]} 38. Qe3 {[%emt 0:00:58]} cxb3 {[%emt 0:01:21]} 39. Qxb6 {[%emt 0:00:38]} Rxb6 {[%emt 0:00:00]} 40. a3 {[%emt 0:00:34]} Kc7 {[%emt 0:00:05]} 41. Kf2 {[%emt 0:00:36]} Kd6 {[%emt 0:00:57]} 42. Ke3 {[%emt 0:00:37]} Rc8 {[%emt 0:00:55]} 43. h4 {[%emt 0:00:00]} Rc2 {[%emt 0:00:00]} 44. Rd2 {[%emt 0:00:00]} Rb5 {[%emt 0:00:00]} 45. h5 {[%emt 0:00:00]} Rc1 {[%emt 0:00:00]} 46. g4 {[%emt 0:00:00]} Rbc5 {[%emt 0:00:00]} 47. Rd3 {[%emt 0:00:00]} Rb5 {[%emt 0:00:00]} 48. Kf4 {[%emt 0:00:00]} Rb6 {[%emt 0:00:00]} 49. Kf5 {[%emt 0:00:00]} Ke7 {[%emt 0:00:00]} 50. f4 {[%emt 0:00:00]} Rh1 {[%emt 0:00:00]} 51. d6+ {[%emt 0:00:00]} Rxd6 {[%emt 0:00:00]} 52. Rxb3 {[%emt 0:00:00]} b6 {[%emt 0:00:00]} 53. Rc3 {[%emt 0:00:00]} Kf8 {[%emt 0:00:00]} 54. Rc8+ {[%emt 0:00:55]} Kg7 {[%emt 0:00:00]} 55. Rb8 {[%emt 0:02:06]} Rh2 {[%emt 0:00:00]} 56. b4 {[%emt 0:03:20]} 1/2-1/2

[Event "NOR-ch Women 2019"]
[Site "Bekkestua"]
[Date "2019.03.17"]
[Round "5.2"]
[White "Kyrkjebo, Hanna B."]
[Black "Johnsen, Sylvia"]
[Result "1-0"]
[ECO "C45"]
[WhiteElo "1896"]
[BlackElo "1982"]
[Annotator "NA"]
[PlyCount "87"]
[EventDate "2019.03.15"]
[EventType "swiss"]
[EventCountry "NOR"]
[SourceTitle "playchess.com"]
[Source "ChessBase"]
[SourceQuality "1"]
[TimeControl "5400+30"]

1. e4 {[%emt 0:00:32]} e5 {[%emt 0:00:36]} 2. Nf3 {[%emt 0:00:35]} Nc6 {[%emt 0:00:33]} 3. d4 {[%emt 0:00:56]} exd4 {[%emt 0:00:56]} 4. Nxd4 {[%emt 0:00:35]} Bc5 {[%emt 0:01:09]} 5. Nb3 {[%emt 0:00:34]} Bb6 {[%emt 0:02:02]} 6. Nc3 {[%emt 0:00:53]} Qf6 {[%emt 0:02:43]} 7. Qe2 {[%emt 0:02:38]} Nge7 {[%emt 0:01:41]} 8. Be3 {[%emt 0:04:14]} Bxe3 {[%emt 0:03:04] C45: Scotch Game} (8... Nd4 9. Nxd4 Bxd4 10. Bxd4 Qxd4 11. Rd1 Qb6 12. Qb5 O-O 13. Be2 d6 14. O-O Be6 15. a4 Nc6 16. Qxb6 axb6 {½-½ (34) Ghaem Maghami,E (2593)-Harikrishna,P (2657) Guangzhou 2010}) 9. Qxe3 {[%emt 0:01:17]} Nb4 {[%emt 0:17:05]} 10. O-O-O {[%emt 0:03:27]} O-O $146 {[%emt 0:01:17]} ({Predecessor:} 10... d6 11. Bc4 Be6 12. Bxe6 fxe6 13. f4 O-O 14. Rhf1 Qh6 15. a3 Nbc6 16. g4 Qxh2 {0-1 (30) Garuchava,A-Tatsumi,K Batumi 2016}) 11. a3 {[%emt 0:04:48]} Na6 {[%emt 0:05:26]} 12. f4 {[%emt 0:02:49]} Qb6 {[%emt 0:07:47]} 13. Qf3 {[%emt 0:12:36]} Nc5 {[%emt 0:06:07]} 14. Nxc5 {[%emt 0:05:46]} Qxc5 {[%emt 0:00:52]} 15. f5 {[%emt 0:01:27]} f6 {[%emt 0:01:43]} 16. g4 {[%emt 0:05:59]} a5 {[%emt 0:07:09]} 17. h4 {[%emt 0:01:55]} Nc6 {[%emt 0:03:49]} 18. g5 {[%emt 0:05:00]} Ne5 {[%emt 0:03:10]} 19. Qg3 {[%emt 0:01:45]} Nc4 {[%emt 0:09:34]} 20. Bxc4+ {[%emt 0:04:31]} Qxc4 {[%emt 0:00:47]} 21. Rhg1 {[%emt 0:09:11]} fxg5 {[%emt 0:08:25]} 22. Qxg5 {[%emt 0:08:07]} Qf7 {[%emt 0:01:09]} 23. e5 {[%emt 0:01:56]} Ra6 {[%emt 0:01:42]} 24. h5 {[%emt 0:02:52]} Kh8 {[%emt 0:01:09]} 25. Nd5 {[%emt 0:03:15]} h6 {[%emt 0:01:52]} 26. Qg4 {[%emt 0:01:27]} Rc6 {[%emt 0:01:16]} 27. f6 {[%emt 0:03:32]} gxf6 {[%emt 0:06:21]} 28. exf6 {[%emt 0:01:44]} Rg8 {[%emt 0:01:33]} 29. Qxg8+ $2 {[%emt 0:02:10]} (29. Qf4 Rg5 30. Rxg5 hxg5 31. Qxg5) 29... Qxg8 {[%emt 0:00:36]} 30. Rxg8+ {[%emt 0:00:41]} Kxg8 {[%emt 0:00:32]} 31. Ne7+ {[%emt 0:01:34]} Kf7 {[%emt 0:00:38]} 32. Nxc8 {[%emt 0:02:53]} d6 {[%emt 0:01:34]} 33. Ne7 {[%emt 0:00:58]} Rc5 {[%emt 0:00:34]} 34. Nd5 {[%emt 0:00:31]} c6 {[%emt 0:00:51]} 35. Nc3 {[%emt 0:01:04]} Rxh5 {[%emt 0:00:40]} 36. Rxd6 {[%emt 0:00:37]} Rh1+ {[%emt 0:00:55]} 37. Kd2 {[%emt 0:00:43]} h5 $18 {[%emt 0:00:31]} 38. Ne4 {[%emt 0:00:54]} h4 {[%emt 0:00:32]} 39. Ng5+ {[%emt 0:00:47]} Kg6 {[%emt 0:00:40]} 40. f7+ {[%emt 0:00:46]} Kg7 {[%emt 0:00:31]} 41. Rf6 {[%emt 0:01:27]} Rh2+ {[%emt 0:00:35]} 42. Ke3 {[%emt 0:00:44]} Kxf6 {[%emt 0:00:33]} 43. f8=Q+ {[%emt 0:00:33]} Kxg5 {[%emt 0:00:32]} 44. Qf4+ {[%emt 0:00:37]} 1-0

[Event "NOR-ch Women 2019"]
[Site "Bekkestua"]
[Date "2019.03.17"]
[Round "5.3"]
[White "Larre, Linnea"]
[Black "Eiding, Amanda Mai Irgens"]
[Result "0-1"]
[ECO "A25"]
[WhiteElo "1599"]
[BlackElo "1503"]
[Annotator "NA"]
[PlyCount "50"]
[EventDate "2019.03.15"]
[EventType "swiss"]
[EventCountry "NOR"]
[SourceTitle "playchess.com"]
[Source "ChessBase"]
[SourceQuality "1"]
[TimeControl "5400+30"]

1. c4 {[%emt 0:00:33]} e5 {[%emt 0:00:36]} 2. g3 {[%emt 0:00:37]} Nc6 {[%emt 0:00:41]} 3. Bg2 {[%emt 0:00:48]} Bc5 {[%emt 0:00:37]} 4. Nc3 {[%emt 0:01:41]} a6 {[%emt 0:00:46]} 5. e3 {[%emt 0:02:36]} Ba7 {[%emt 0:01:39]} 6. Nge2 {[%emt 0:02:18]} d6 {[%emt 0:00:42]} 7. O-O {[%emt 0:01:02]} h5 {[%emt 0:01:29]} 8. d4 {[%emt 0:01:59]} h4 {[%emt 0:05:37]} 9. b3 {[%emt 0:15:27]} Qg5 {[%emt 0:11:23]} 10. Qe1 {[%emt 0:05:24]} hxg3 {[%emt 0:06:38]} 11. fxg3 {[%emt 0:01:02]} Bh3 {[%emt 0:01:33]} 12. Qf2 {[%emt 0:02:44]} f6 {[%emt 0:05:36]} 13. Ne4 {[%emt 0:06:11]} Qh5 {[%emt 0:02:39]} 14. Bb2 {[%emt 0:01:23]} Bg4 {[%emt 0:02:05]} 15. Rfe1 {[%emt 0:03:21]} Qxh2+ {[%emt 0:04:01]} 16. Kf1 {[%emt 0:00:35]} Rh5 {[%emt 0:02:13]} 17. Nd2 {[%emt 0:03:12]} Rf5 {[%emt 0:01:59]} 18. Nf3 {[%emt 0:04:15]} Bxf3 {[%emt 0:03:04]} 19. Bxf3 {[%emt 0:01:18]} Qxf2+ {[%emt 0:00:40]} 20. Kxf2 {[%emt 0:00:43]} e4 {[%emt 0:00:36]} 21. Ng1 {[%emt 0:01:32]} exf3 {[%emt 0:01:17]} 22. Nxf3 {[%emt 0:00:42]} Rh5 {[%emt 0:01:30]} 23. g4 {[%emt 0:04:09]} Rh8 {[%emt 0:01:05]} 24. g5 {[%emt 0:01:05]} fxg5 {[%emt 0:01:07]} 25. Nxg5 {[%emt 0:00:51]} Rh2+ {[%emt 0:00:53]} 0-1

[Event "NOR-ch Women 2019"]
[Site "Bekkestua"]
[Date "2019.03.17"]
[Round "5.4"]
[White "Kyrkjebo, Marte B."]
[Black "Nordquelle, Amelia"]
[Result "1-0"]
[ECO "B52"]
[WhiteElo "1830"]
[BlackElo "1595"]
[Annotator "NA"]
[PlyCount "89"]
[EventDate "2019.03.15"]
[EventType "swiss"]
[EventCountry "NOR"]
[SourceTitle "playchess.com"]
[Source "ChessBase"]
[SourceQuality "1"]
[TimeControl "5400+30"]

1. e4 {[%emt 0:00:32]} c5 {[%emt 0:01:25]} 2. Nf3 {[%emt 0:00:36]} d6 {[%emt 0:00:40]} 3. Bb5+ {[%emt 0:00:40]} Bd7 {[%emt 0:01:57]} 4. Bxd7+ {[%emt 0:00:43]} Qxd7 {[%emt 0:00:45]} 5. c4 {[%emt 0:00:41]} Nc6 {[%emt 0:01:21]} 6. Nc3 {[%emt 0:00:45]} g6 {[%emt 0:00:46]} 7. d4 {[%emt 0:00:41]} cxd4 {[%emt 0:01:10]} 8. Nxd4 {[%emt 0:00:41]} Bg7 {[%emt 0:01:49]} 9. Be3 {[%emt 0:00:53]} Nf6 {[%emt 0:00:52]} 10. f3 {[%emt 0:02:15]} O-O {[%emt 0:02:05]} 11. O-O {[%emt 0:01:27]} Rac8 {[%emt 0:01:32]} 12. b3 {[%emt 0:03:12]} a6 {[%emt 0:01:30]} 13. a4 {[%emt 0:11:48]} Na5 {[%emt 0:08:52]} 14. Rc1 {[%emt 0:03:41]} Rc7 {[%emt 0:02:26]} 15. Nde2 {[%emt 0:03:32]} Rc6 {[%emt 0:01:52]} 16. Nd5 {[%emt 0:07:44]} e6 {[%emt 0:03:18]} 17. Nxf6+ {[%emt 0:08:52]} Bxf6 {[%emt 0:00:48]} 18. c5 {[%emt 0:06:15]} Rcc8 {[%emt 0:06:58]} 19. cxd6 {[%emt 0:14:29]} Rxc1 {[%emt 0:01:40]} 20. Nxc1 {[%emt 0:03:57]} Rd8 {[%emt 0:00:54]} 21. Bb6 {[%emt 0:01:37]} Qc6 {[%emt 0:02:19]} 22. Bxd8 {[%emt 0:02:51]} Bxd8 {[%emt 0:00:36]} 23. Qd3 {[%emt 0:02:12]} b5 {[%emt 0:01:14]} 24. axb5 {[%emt 0:03:17]} axb5 {[%emt 0:01:07]} 25. Ne2 {[%emt 0:01:23]} e5 {[%emt 0:00:59]} 26. h3 {[%emt 0:03:21]} Nb7 {[%emt 0:00:54]} 27. Rd1 {[%emt 0:03:24]} Bb6+ {[%emt 0:00:53]} 28. Kh2 {[%emt 0:00:52]} Qc5 {[%emt 0:01:14]} 29. Qd5 {[%emt 0:02:31]} Nd8 {[%emt 0:01:24]} 30. Qxc5 {[%emt 0:00:43]} Bxc5 {[%emt 0:00:36]} 31. Rd5 {[%emt 0:01:26]} Ne6 {[%emt 0:01:38]} 32. d7 {[%emt 0:01:10]} Be7 {[%emt 0:01:01]} 33. Rxb5 {[%emt 0:01:06]} f6 {[%emt 0:00:41]} 34. Rb8+ {[%emt 0:01:12]} Bd8 {[%emt 0:01:06]} 35. Nc3 {[%emt 0:01:02]} Kf7 {[%emt 0:00:55]} 36. Nd5 {[%emt 0:01:12]} f5 {[%emt 0:01:09]} 37. b4 {[%emt 0:02:27]} fxe4 {[%emt 0:00:49]} 38. fxe4 {[%emt 0:00:40]} Bg5 {[%emt 0:01:13]} 39. b5 {[%emt 0:01:17]} Nd8 {[%emt 0:00:48]} 40. g3 {[%emt 0:01:14]} Ke6 {[%emt 0:00:54]} 41. h4 {[%emt 0:01:24]} Be7 {[%emt 0:00:41]} 42. Nxe7 {[%emt 0:01:03]} Kxe7 {[%emt 0:00:42]} 43. b6 {[%emt 0:00:00]} Kxd7 {[%emt 0:00:00]} 44. b7 {[%emt 0:00:00]} h6 {[%emt 0:00:00]} 45. Rxd8+ {[%emt 0:00:00]} 1-0

[Event "NOR-ch Women 2019"]
[Site "Bekkestua"]
[Date "2019.03.17"]
[Round "5.5"]
[White "Helliesen, Lykke-Merlot"]
[Black "Landsverk, Ida"]
[Result "1-0"]
[ECO "A59"]
[WhiteElo "1579"]
[BlackElo "1369"]
[Annotator "NA"]
[PlyCount "69"]
[EventDate "2019.03.15"]
[EventType "swiss"]
[EventCountry "NOR"]
[SourceTitle "playchess.com"]
[Source "ChessBase"]
[SourceQuality "1"]
[TimeControl "5400+30"]

1. d4 {[%emt 0:00:33]} Nf6 {[%emt 0:00:35]} 2. c4 {[%emt 0:00:34]} c5 {[%emt 0:00:35]} 3. d5 {[%emt 0:00:37]} b5 {[%emt 0:00:36]} 4. cxb5 {[%emt 0:00:34]} a6 {[%emt 0:00:36]} 5. bxa6 {[%emt 0:00:35]} Bxa6 {[%emt 0:00:36]} 6. Nc3 {[%emt 0:00:36]} g6 {[%emt 0:00:47]} 7. e4 {[%emt 0:00:42]} d6 {[%emt 0:00:35]} 8. Nf3 {[%emt 0:02:16]} Bxf1 {[%emt 0:00:48]} 9. Kxf1 {[%emt 0:00:35]} Nbd7 {[%emt 0:01:35]} 10. g3 {[%emt 0:00:42]} Bg7 {[%emt 0:01:14]} 11. Kg2 {[%emt 0:00:35]} O-O {[%emt 0:01:29]} 12. a4 {[%emt 0:00:48]} Qb6 {[%emt 0:03:19]} 13. Qc2 {[%emt 0:01:01]} c4 {[%emt 0:08:12]} 14. Nb5 {[%emt 0:01:08]} Nc5 {[%emt 0:10:58]} 15. Be3 {[%emt 0:01:49]} Ng4 {[%emt 0:07:46]} 16. Bd4 {[%emt 0:04:51]} Bxd4 {[%emt 0:03:07]} 17. Nfxd4 {[%emt 0:00:36]} Nb3 {[%emt 0:11:45]} 18. Nxb3 {[%emt 0:02:33]} cxb3 {[%emt 0:00:36]} 19. Qe2 {[%emt 0:01:17]} Ne5 {[%emt 0:01:55]} 20. Qd1 {[%emt 0:02:30]} Qa5 {[%emt 0:13:18]} 21. Qxb3 {[%emt 0:02:01]} Qd2 {[%emt 0:01:16]} 22. Qc3 {[%emt 0:02:27]} Qh6 {[%emt 0:07:28]} 23. a5 {[%emt 0:02:38]} Rfc8 {[%emt 0:00:54]} 24. Qd4 {[%emt 0:02:40]} Rc4 {[%emt 0:02:05]} 25. Qb6 {[%emt 0:00:52]} Qd2 {[%emt 0:14:07]} 26. a6 {[%emt 0:01:25]} Rc2 {[%emt 0:02:58]} 27. a7 {[%emt 0:00:56]} Kg7 {[%emt 0:02:40]} 28. Nc7 {[%emt 0:01:28]} Nc4 {[%emt 0:00:38]} 29. Qb7 {[%emt 0:03:37]} Qxf2+ {[%emt 0:00:34]} 30. Kh3 {[%emt 0:01:25]} Qg2+ {[%emt 0:00:32]} 31. Kh4 {[%emt 0:01:34]} Qxe4+ {[%emt 0:00:32]} 32. g4 {[%emt 0:01:54]} Ne5 {[%emt 0:00:48]} 33. Rag1 {[%emt 0:08:01]} Nf3+ {[%emt 0:00:48]} 34. Kh3 {[%emt 0:00:57]} Qf4 {[%emt 0:00:43]} 35. Ne6+ {[%emt 0:11:41]} 1-0

[Event "NOR-ch Women 2019"]
[Site "Bekkestua"]
[Date "2019.03.17"]
[Round "5.6"]
[White "Mrachek, Svetlana"]
[Black "Lazareva, Emilie"]
[Result "0-1"]
[ECO "D12"]
[WhiteElo "1628"]
[BlackElo "1354"]
[Annotator "NA"]
[PlyCount "66"]
[EventDate "2019.03.15"]
[EventType "swiss"]
[EventCountry "NOR"]
[SourceTitle "playchess.com"]
[Source "ChessBase"]
[SourceQuality "1"]
[TimeControl "5400+30"]

1. d4 {[%emt 0:00:32]} d5 {[%emt 0:00:39]} 2. Nf3 {[%emt 0:00:32]} Nf6 {[%emt 0:00:44]} 3. c4 {[%emt 0:00:40]} c6 {[%emt 0:01:23]} 4. e3 {[%emt 0:00:45]} Bf5 {[%emt 0:01:22]} 5. b3 {[%emt 0:01:59]} Nbd7 {[%emt 0:02:04]} 6. Bd3 {[%emt 0:01:14]} Bg4 {[%emt 0:03:05]} 7. Nbd2 {[%emt 0:01:09]} e6 {[%emt 0:01:34]} 8. Qc2 {[%emt 0:01:34]} Bb4 {[%emt 0:01:26]} 9. O-O {[%emt 0:00:40]} O-O {[%emt 0:01:32]} 10. Ne5 {[%emt 0:03:14]} Bh5 {[%emt 0:03:42]} 11. f4 {[%emt 0:06:50]} Bd6 {[%emt 0:03:01]} 12. Ndf3 {[%emt 0:02:30]} Bxf3 {[%emt 0:03:11]} 13. Rxf3 {[%emt 0:02:42]} g6 {[%emt 0:02:07]} 14. Bd2 {[%emt 0:13:48]} Rc8 {[%emt 0:04:28]} 15. c5 {[%emt 0:01:11]} Bb8 {[%emt 0:02:52]} 16. b4 {[%emt 0:00:54]} b6 {[%emt 0:02:05]} 17. Be1 {[%emt 0:07:18]} Nxe5 {[%emt 0:06:45]} 18. fxe5 {[%emt 0:01:39]} Ng4 {[%emt 0:02:08]} 19. h3 {[%emt 0:05:09]} Nh6 {[%emt 0:00:39]} 20. Rf6 {[%emt 0:02:34]} Kh8 {[%emt 0:02:25]} 21. Bh4 {[%emt 0:08:13]} Ng8 {[%emt 0:01:43]} 22. Qf2 {[%emt 0:03:38]} Nh6 {[%emt 0:03:25]} 23. Qf4 {[%emt 0:05:55]} Ng8 {[%emt 0:03:22]} 24. Rf1 {[%emt 0:04:44]} Qe8 {[%emt 0:02:57]} 25. Bg5 {[%emt 0:04:58]} Kg7 {[%emt 0:04:04]} 26. Qg4 {[%emt 0:04:50]} Bc7 {[%emt 0:02:20]} 27. h4 {[%emt 0:04:23]} h5 {[%emt 0:02:04]} 28. Bh6+ {[%emt 0:03:00]} Nxh6 {[%emt 0:02:45]} 29. Rxf7+ {[%emt 0:00:41]} Rxf7 {[%emt 0:06:11]} 30. Qxg6+ {[%emt 0:00:41]} Kh8 {[%emt 0:00:51]} 31. Qxh6+ {[%emt 0:01:09]} Kg8 {[%emt 0:00:51]} 32. Qg6+ {[%emt 0:02:31]} Rg7 {[%emt 0:01:02]} 33. Qxh5 {[%emt 0:01:26]} Qxh5 {[%emt 0:00:07]} 0-1

[Event "NOR-ch Women 2019"]
[Site "Bekkestua"]
[Date "2019.03.17"]
[Round "5.7"]
[White "Hina, Ariza"]
[Black "Bjorkly, Sara Marie Skaug"]
[Result "1-0"]
[ECO "B02"]
[WhiteElo "1594"]
[BlackElo "1368"]
[Annotator "NA"]
[PlyCount "91"]
[EventDate "2019.03.15"]
[EventType "swiss"]
[EventCountry "NOR"]
[SourceTitle "playchess.com"]
[Source "ChessBase"]
[SourceQuality "1"]
[TimeControl "5400+30"]

1. e4 {[%emt 0:02:21]} d5 {[%emt 0:17:52]} 2. exd5 {[%emt 0:00:36]} Nf6 {[%emt 0:01:06]} 3. Nc3 {[%emt 0:00:39]} Nxd5 {[%emt 0:00:39]} 4. Bc4 {[%emt 0:00:50]} Nxc3 {[%emt 0:00:50]} 5. bxc3 {[%emt 0:00:43]} e6 {[%emt 0:00:48]} 6. Nf3 {[%emt 0:01:06]} Nd7 {[%emt 0:01:49]} 7. d3 {[%emt 0:01:36]} g6 {[%emt 0:00:47]} 8. O-O {[%emt 0:01:50]} Bg7 {[%emt 0:00:36]} 9. Bg5 {[%emt 0:01:00]} Nf6 {[%emt 0:01:25]} 10. Qd2 {[%emt 0:03:44]} h6 {[%emt 0:01:03]} 11. Be3 {[%emt 0:01:43]} Qd6 {[%emt 0:01:39]} 12. Rfe1 {[%emt 0:10:21]} g5 {[%emt 0:01:57]} 13. h3 {[%emt 0:09:12]} b6 {[%emt 0:01:19]} 14. Nd4 {[%emt 0:04:13]} e5 {[%emt 0:05:48]} 15. Bb5+ {[%emt 0:09:04]} Bd7 {[%emt 0:05:38]} 16. Nf5 {[%emt 0:01:13]} Qf8 {[%emt 0:00:41]} 17. Bd4 {[%emt 0:06:55]} Bxb5 {[%emt 0:04:53]} 18. Rxe5+ {[%emt 0:01:18]} Kd7 {[%emt 0:01:33]} 19. Rxb5 {[%emt 0:00:54]} c5 {[%emt 0:01:44]} 20. Nxg7 {[%emt 0:05:11]} Qxg7 {[%emt 0:01:31]} 21. Bxf6 {[%emt 0:01:11]} Qxf6 {[%emt 0:00:47]} 22. Re1 {[%emt 0:00:46]} Kc6 {[%emt 0:01:12]} 23. Rbb1 {[%emt 0:01:29]} Rhe8 {[%emt 0:01:29]} 24. Kf1 {[%emt 0:03:22]} Re6 {[%emt 0:02:07]} 25. Rxe6+ {[%emt 0:01:30]} Qxe6 {[%emt 0:00:54]} 26. c4 {[%emt 0:01:50]} Re8 {[%emt 0:01:03]} 27. Re1 {[%emt 0:00:42]} Qxe1+ {[%emt 0:03:24]} 28. Qxe1 {[%emt 0:00:35]} Rxe1+ {[%emt 0:00:37]} 29. Kxe1 {[%emt 0:00:32]} Kd6 {[%emt 0:01:17]} 30. Ke2 {[%emt 0:01:26]} Ke5 {[%emt 0:00:51]} 31. c3 {[%emt 0:03:42]} f5 {[%emt 0:00:55]} 32. a4 {[%emt 0:02:28]} a5 {[%emt 0:00:43]} 33. Ke3 {[%emt 0:00:45]} f4+ {[%emt 0:00:50]} 34. Kf3 {[%emt 0:01:27]} h5 {[%emt 0:00:48]} 35. g3 {[%emt 0:02:05]} Kf5 {[%emt 0:02:46]} 36. gxf4 {[%emt 0:02:33]} gxf4 {[%emt 0:01:23]} 37. d4 {[%emt 0:00:46]} cxd4 {[%emt 0:01:17]} 38. cxd4 {[%emt 0:00:37]} h4 {[%emt 0:01:54]} 39. d5 {[%emt 0:00:50]} Ke5 {[%emt 0:00:59]} 40. Kg4 {[%emt 0:00:47]} b5 {[%emt 0:00:44]} 41. cxb5 {[%emt 0:00:40]} Kxd5 {[%emt 0:00:36]} 42. Kxf4 {[%emt 0:00:40]} Kc5 {[%emt 0:00:38]} 43. Kg4 {[%emt 0:00:40]} Kb4 {[%emt 0:00:44]} 44. b6 {[%emt 0:00:34]} Kxa4 {[%emt 0:00:42]} 45. b7 {[%emt 0:00:35]} Ka3 {[%emt 0:00:37]} 46. b8=Q {[%emt 0:00:44]} 1-0

[Event "NOR-ch Women 2019"]
[Site "Bekkestua"]
[Date "2019.03.17"]
[Round "5.8"]
[White "Bjerke, Vilde"]
[Black "Szemes, Eva Weston"]
[Result "0-1"]
[ECO "B10"]
[WhiteElo "1251"]
[BlackElo "1335"]
[Annotator "NA"]
[PlyCount "96"]
[EventDate "2019.03.15"]
[EventType "swiss"]
[EventCountry "NOR"]
[SourceTitle "playchess.com"]
[Source "ChessBase"]
[SourceQuality "1"]
[TimeControl "5400+30"]

1. e4 {[%emt 0:00:33]} c6 {[%emt 0:00:40]} 2. Nf3 {[%emt 0:01:03]} d5 {[%emt 0:00:47]} 3. exd5 {[%emt 0:02:14]} cxd5 {[%emt 0:01:50]} 4. Bb5+ {[%emt 0:00:57]} Bd7 {[%emt 0:01:06]} 5. Bxd7+ {[%emt 0:01:00]} Qxd7 {[%emt 0:00:47]} 6. O-O {[%emt 0:00:44]} Nf6 {[%emt 0:00:41]} 7. d4 {[%emt 0:00:51]} Nc6 {[%emt 0:00:53]} 8. Nc3 {[%emt 0:00:45]} e6 {[%emt 0:01:19]} 9. Bf4 {[%emt 0:00:55]} Bd6 {[%emt 0:02:11]} 10. Bxd6 {[%emt 0:00:50]} Qxd6 {[%emt 0:00:41]} 11. Nb5 {[%emt 0:01:06]} Qd7 {[%emt 0:01:10]} 12. Qe2 {[%emt 0:01:31]} a6 {[%emt 0:01:05]} 13. Nc3 {[%emt 0:01:52]} b5 {[%emt 0:03:14]} 14. a3 {[%emt 0:00:53]} O-O {[%emt 0:02:00]} 15. h3 {[%emt 0:00:36]} h6 {[%emt 0:00:52]} 16. Rad1 {[%emt 0:00:39]} Rac8 {[%emt 0:02:55]} 17. Rd3 {[%emt 0:00:44]} Ne7 {[%emt 0:01:34]} 18. Ne5 {[%emt 0:00:55]} Qd6 {[%emt 0:01:20]} 19. Rg3 {[%emt 0:01:24]} Nd7 {[%emt 0:00:53]} 20. Nxd7 {[%emt 0:05:30]} Qxd7 {[%emt 0:00:57]} 21. Qh5 {[%emt 0:04:59]} Nf5 {[%emt 0:02:01]} 22. Rd3 {[%emt 0:01:45]} a5 {[%emt 0:01:55]} 23. Qd1 {[%emt 0:01:14]} b4 {[%emt 0:02:14]} 24. axb4 {[%emt 0:00:46]} axb4 {[%emt 0:00:37]} 25. Ne2 {[%emt 0:01:02]} Qc7 {[%emt 0:01:30]} 26. c3 {[%emt 0:01:14]} bxc3 {[%emt 0:00:58]} 27. Rxc3 {[%emt 0:00:45]} Qb6 {[%emt 0:01:10]} 28. Qb3 {[%emt 0:01:18]} Qxb3 {[%emt 0:00:54]} 29. Rxb3 {[%emt 0:00:46]} Rc2 {[%emt 0:01:01]} 30. Ng3 {[%emt 0:01:48]} Nxd4 {[%emt 0:00:56]} 31. Rb7 {[%emt 0:00:52]} Ne2+ {[%emt 0:02:30]} 32. Nxe2 {[%emt 0:00:51]} Rxe2 {[%emt 0:00:35]} 33. Ra1 {[%emt 0:00:41]} e5 {[%emt 0:02:20]} 34. Kf1 {[%emt 0:01:07]} Rc2 {[%emt 0:01:07]} 35. Raa7 {[%emt 0:01:04]} d4 {[%emt 0:01:18]} 36. Ke1 {[%emt 0:01:05]} d3 {[%emt 0:01:58]} 37. g4 {[%emt 0:01:02]} g5 {[%emt 0:03:05]} 38. b4 {[%emt 0:00:54]} Rb2 {[%emt 0:00:51]} 39. b5 {[%emt 0:00:53]} e4 {[%emt 0:01:46]} 40. b6 {[%emt 0:00:43]} Kg7 {[%emt 0:01:45]} 41. Ra6 {[%emt 0:00:38]} Kg8 {[%emt 0:02:46]} 42. Re7 {[%emt 0:00:42]} Rd8 {[%emt 0:05:28]} 43. Rxe4 {[%emt 0:01:21]} d2+ {[%emt 0:00:42]} 44. Kf1 {[%emt 0:03:32]} d1=Q+ {[%emt 0:00:50]} 45. Kg2 {[%emt 0:00:42]} Qd3 {[%emt 0:01:45]} 46. Rea4 {[%emt 0:00:41]} Qe2 {[%emt 0:02:53]} 47. Ra1 {[%emt 0:04:59]} Qxf2+ {[%emt 0:00:00]} 48. Kh1 {[%emt 0:00:48]} Qh2# {[%emt 0:00:00]} 0-1